bitfinex-derivatives/quotes_BTCF0:USTF0_20240824
["timestamp","ask_amount","ask_price","bid_price","bid_amount"]
[1724465195396,0.08203566,63864.0,63863.0,0.078246]
[1724465195595,0.004,63864.0,63863.0,0.078246]
[1724465196304,0.08203566,63864.0,63863.0,0.078246]
[1724465197710,0.004,63864.0,63863.0,0.078246]
[1724465198296,0.07807566,63867.0,63863.0,0.078246]
[1724465198297,0.06259611,63867.0,63864.0,0.46976]
[1724465198499,4e-05,63867.0,63866.0,0.078243]
[1724465198702,0.04691155,63873.0,63872.0,0.078235]
[1724465198908,0.04691155,63875.0,63874.0,0.078233]
[1724465199213,0.04691155,63878.0,63874.0,0.22]
[1724465199508,0.00813296,63879.0,63878.0,0.078228]
[1724465199707,0.04691155,63880.0,63879.0,0.078227]
[1724465199903,0.06279105,63882.0,63881.0,0.078224]
[1724465200106,0.00023494,63882.0,63881.0,0.078224]
[1724465201511,0.04703206,63882.0,63881.0,0.078224]
[1724465201705,0.04703206,63882.0,63881.0,0.079224]
[1724465201706,0.04903206,63882.0,63881.0,0.079224]
[1724465202213,0.04903206,63882.0,63881.0,0.080224]
[1724465202507,0.00223494,63882.0,63881.0,0.080224]
[1724465203208,0.04903206,63882.0,63881.0,0.080224]
[1724465204013,0.05707161,63882.0,63881.0,0.080224]
[1724465204404,0.01027449,63882.0,63881.0,0.080224]
[1724465209515,0.00223494,63882.0,63881.0,0.080224]
[1724465210606,0.00223494,63882.0,63881.0,0.300224]
[1724465216011,0.00223494,63882.0,63881.0,0.080224]
[1724465232227,0.00223494,63882.0,63881.0,0.14257107]
[1724465233228,0.00223494,63882.0,63881.0,0.080224]
[1724465235115,0.00223494,63882.0,63881.0,0.14257107]
[1724465235527,0.00223494,63882.0,63881.0,0.36257107]
[1724465235722,0.06478293,63882.0,63881.0,0.300224]
[1724465236024,0.00223494,63882.0,63881.0,0.300224]
[1724465239134,0.04913779,63882.0,63881.0,1.248048]
[1724465239428,0.06254799,63886.0,63885.0,0.078219]
[1724465239620,0.06254799,63887.0,63886.0,0.078218]
[1724465239825,0.06254799,63887.0,63886.0,0.1405945]
[1724465241027,0.06252681,63887.0,63886.0,0.0623765]
[1724465241223,0.06252681,63888.0,63887.0,0.078217]
[1724465241630,0.06252681,63889.0,63888.0,0.078216]
[1724465241928,0.3608,63890.0,63888.0,0.1249947]
[1724465242323,0.07803566,63889.0,63888.0,0.078216]
[1724465242929,0.15624966,63889.0,63888.0,0.078216]
[1724465243322,0.07803566,63889.0,63888.0,0.078216]
[1724465243533,0.001,63890.0,63889.0,0.078214]
[1724465244126,0.07915293,63890.0,63889.0,0.078214]
[1724465244534,0.07915293,63890.0,63889.0,0.439014]
[1724465244734,0.001,63890.0,63889.0,0.439014]
[1724465245035,0.001,63890.0,63889.0,0.440014]
[1724465245328,0.07815382,63891.0,63889.0,0.3618]
[1724465245533,0.07815382,63895.0,63889.0,0.3618]
[1724465245729,0.06251879,63890.0,63889.0,0.440014]
[1724465245930,0.003,63890.0,63889.0,0.441014]
[1724465246330,0.06251879,63892.0,63891.0,0.078212]
[1724465246529,0.06251879,63892.0,63889.0,0.3618]
[1724465246530,0.06251879,63893.0,63890.0,0.06234681]
[1724465246726,0.06251879,63893.0,63891.0,0.06234681]
[1724465247036,0.06251879,63893.0,63892.0,0.078211]
[1724465247329,0.06251879,63893.0,63889.0,0.3628]
[1724465247330,0.06251879,63893.0,63890.0,0.06234681]
[1724465247533,0.06251879,63894.0,63893.0,0.078209]
[1724465248527,0.06251879,63895.0,63894.0,0.078208]
[1724465249125,0.06251879,63895.0,63894.0,0.12493886]
[1724465249737,0.06551879,63895.0,63894.0,0.12593886]
[1724465251024,0.06551879,63895.0,63894.0,0.12693886]
[1724465251225,0.06551879,63895.0,63894.0,0.080208]
[1724465251531,0.003,63895.0,63894.0,0.080208]
[1724465251728,0.003,63895.0,63894.0,0.12693886]
[1724465251928,0.003,63895.0,63894.0,0.080208]
[1724465252735,0.003,63895.0,63894.0,0.14255481]
[1724465253033,0.003,63895.0,63894.0,0.088049]
[1724465253427,0.06251879,63902.0,63894.0,0.088049]
[1724465253739,0.06251879,63903.0,63902.0,0.078198]
[1724465254136,0.06251879,63904.0,63903.0,0.078197]
[1724465254742,0.42331879,63905.0,63904.0,0.078196]
[1724465255129,0.3608,63905.0,63904.0,0.078196]
[1724465255330,0.42331879,63905.0,63904.0,0.078196]
[1724465256135,0.42331879,63905.0,63904.0,0.079196]
[1724465256736,0.50151379,63905.0,63904.0,0.079196]
[1724465256940,0.50961339,63905.0,63904.0,0.079196]
[1724465257132,0.4470946,63905.0,63904.0,0.079196]
[1724465257533,0.4470946,63905.0,63904.0,0.080196]
[1724465257728,0.50961339,63905.0,63904.0,0.080196]
[1724465258156,0.4470946,63905.0,63904.0,0.080196]
[1724465259129,0.4470946,63905.0,63904.0,0.002]
[1724465260935,0.0862946,63905.0,63904.0,0.002]
[1724465261146,0.50961339,63905.0,63904.0,0.002]
[1724465265653,0.50961339,63905.0,63904.0,0.080196]
[1724465267744,0.3688996,63905.0,63904.0,0.080196]
[1724465267944,0.43129512,63905.0,63904.0,0.080196]
[1724465268743,0.3608,63905.0,63904.0,0.080196]
[1724465270349,0.3608,63905.0,63904.0,0.300196]
[1724465272347,0.00800251,63908.0,63907.0,0.078192]
[1724465272653,0.06239552,63909.0,63908.0,0.078191]
[1724465273043,0.07040913,63909.0,63908.0,0.078191]
[1724465274148,0.00801361,63909.0,63908.0,0.078191]
[1724465274455,0.046,63911.0,63910.0,0.078189]
[1724465275649,0.046,63911.0,63910.0,0.079189]
[1724465276049,0.12415382,63911.0,63910.0,0.080189]
[1724465276351,0.046,63911.0,63910.0,0.080189]
[1724465276951,0.12415382,63911.0,63910.0,0.080189]
[1724465277843,0.13223245,63911.0,63910.0,0.080189]
[1724465278443,0.00807863,63911.0,63910.0,0.080189]
[1724465278746,0.07815382,63911.0,63910.0,0.080189]
[1724465279656,0.51714082,63911.0,63910.0,0.080189]
[1724465279952,0.56314082,63911.0,63910.0,0.080189]
[1724465280159,0.51033167,63911.0,63910.0,0.080189]
[1724465283864,0.484987,63911.0,63910.0,0.080189]
[1724465284264,0.438987,63911.0,63910.0,0.080189]
[1724465284965,0.438987,63911.0,63910.0,0.002]
[1724465285157,0.46433101,63911.0,63910.0,0.002]
[1724465286357,0.51273101,63911.0,63910.0,0.002]
[1724465287666,0.51273205,63911.0,63910.0,0.002]
[1724465290664,0.60637484,63911.0,63910.0,0.002]
[1724465291051,0.51273205,63911.0,63910.0,0.002]
[1724465292061,0.46433205,63911.0,63910.0,0.002]
[1724465292255,0.46433205,63911.0,63910.0,0.080189]
[1724465292256,0.38614505,63911.0,63910.0,0.080189]
[1724465294160,0.02534505,63911.0,63910.0,0.080189]
[1724465296860,0.02534505,63911.0,63910.0,0.769589]
[1724465297059,0.3608,63913.0,63911.0,0.078187]
[1724465297060,0.07816871,63912.0,63911.0,0.078187]
[1724465297268,0.43896871,63913.0,63911.0,0.0972]
[1724465297462,0.43896871,63913.0,63912.0,0.04673983]
[1724465297656,0.43896871,63913.0,63912.0,0.12492583]
[1724465298064,0.3608,63913.0,63912.0,0.078186]
[1724465298270,0.43895099,63913.0,63912.0,0.078186]
[1724465298465,0.3608,63913.0,63912.0,0.078186]
[1724465298970,0.02534245,63913.0,63912.0,0.079186]
[1724465299167,0.02534276,63913.0,63912.0,0.001]
[1724465299360,0.07814718,63914.0,63913.0,0.078185]
[1724465299561,0.07814718,63914.0,63912.0,0.001]
[1724465299562,0.078185,63913.0,63912.0,0.001]
[1724465299863,0.10352708,63913.0,63912.0,0.002]
[1724465300062,0.19962708,63913.0,63912.0,0.002]
[1724465300455,0.19962708,63913.0,63907.0,0.00023475]
[1724465300456,0.19966708,63913.0,63907.0,0.00023475]
[1724465300668,0.3608,63908.0,63907.0,0.00023475]
[1724465300865,0.38614208,63908.0,63907.0,0.00023475]
[1724465301264,0.38618208,63908.0,63907.0,0.00023475]
[1724465301865,0.46437676,63908.0,63907.0,0.00023475]
[1724465302266,0.46437676,63908.0,63907.0,0.00123475]
[1724465303569,0.46537676,63908.0,63907.0,0.00223475]
[1724465306471,0.47322997,63908.0,63907.0,0.00223475]
[1724465306870,0.47323005,63908.0,63907.0,0.00223475]
[1724465308373,0.39503905,63908.0,63907.0,0.08042675]
[1724465308571,0.36969321,63908.0,63907.0,0.08042675]
[1724465308767,0.3950387,63908.0,63907.0,0.08042675]
[1724465310065,0.36969321,63908.0,63907.0,0.08042675]
[1724465310373,0.39503869,63908.0,63907.0,0.08042675]
[1724465313673,0.00889321,63908.0,63907.0,0.08042675]
[1724465313870,0.08702323,63908.0,63907.0,0.08042675]
[1724465314273,0.00889321,63908.0,63907.0,0.08042675]
[1724465315274,0.00889321,63908.0,63907.0,0.12716623]
[1724465315578,0.00889321,63908.0,63907.0,0.08042675]
[1724465322885,0.00889321,63908.0,63907.0,0.12709909]
[1724465323676,0.00104,63908.0,63907.0,0.08042675]
[1724465325690,0.06352824,63908.0,63907.0,0.08042675]
[1724465327087,0.00104,63908.0,63907.0,0.08042675]
[1724465327692,0.0635286,63908.0,63907.0,0.08042675]
[1724465329585,0.00104,63908.0,63907.0,0.08042675]
[1724465330689,0.0635286,63908.0,63907.0,0.08042675]
[1724465332490,0.00104,63908.0,63907.0,0.08042675]
[1724465333894,0.0635286,63908.0,63907.0,0.08042675]
[1724465334196,0.00104,63908.0,63907.0,0.08042675]
[1724465334788,0.00104,63908.0,63907.0,0.14277356]
[1724465335693,0.0635286,63908.0,63907.0,0.08042675]
[1724465335887,0.00104,63908.0,63907.0,0.08042675]
[1724465336088,0.0635314,63908.0,63907.0,0.08042675]
[1724465339187,0.00104,63908.0,63907.0,0.08042675]
[1724465344799,0.00104,63908.0,63907.0,0.44122675]
[1724465345190,0.00104,63908.0,63907.0,0.50357356]
[1724465345892,0.00104,63908.0,63907.0,0.44122675]
[1724465349089,0.06358445,63908.0,63907.0,0.44122675]
[1724465350791,0.00104,63908.0,63907.0,0.51941875]
[1724465358101,0.00104,63908.0,63907.0,0.44122675]
[1724465371604,0.00104,63908.0,63907.0,0.08042675]
[1724465371900,0.00104,63908.0,63907.0,0.44122675]
[1724465375007,0.04794158,63908.0,63907.0,0.56033533]
[1724465375405,0.00104,63908.0,63907.0,0.44122675]
[1724465378402,0.00104,63908.0,63907.0,0.51902034]
[1724465382605,0.00104,63908.0,63907.0,0.15822034]
[1724465382815,0.00104,63908.0,63907.0,0.51902034]
[1724465383008,0.00104,63908.0,63907.0,0.15822034]
[1724465383215,0.00104,63908.0,63907.0,0.51902034]
[1724465384310,0.00104,63908.0,63907.0,0.15822034]
[1724465384514,0.00104,63908.0,63907.0,0.51902034]
[1724465385707,0.00104,63908.0,63907.0,0.15822034]
[1724465385907,0.00104,63908.0,63907.0,0.51902034]
[1724465387314,0.00104,63908.0,63907.0,0.56033489]
[1724465387710,0.00104,63908.0,63907.0,0.51901948]
[1724465389313,0.00104,63908.0,63907.0,0.56033348]
[1724465392526,0.04794667,63908.0,63907.0,0.56033348]
[1724465393419,0.04794667,63908.0,63907.0,0.56033151]
[1724465394116,0.04794667,63908.0,63907.0,0.19953151]
[1724465394320,0.04794667,63908.0,63907.0,0.56033151]
[1724465395325,0.04794667,63908.0,63907.0,0.19953151]
[1724465395525,0.04794667,63908.0,63907.0,0.56033151]
[1724465396827,0.00104,63908.0,63907.0,0.56033151]
[1724465397016,0.04794667,63908.0,63907.0,0.56033151]
[1724465397326,0.00104,63908.0,63907.0,0.56033151]
[1724465397531,0.04794667,63908.0,63907.0,0.56033151]
[1724465397823,0.00104,63908.0,63907.0,0.56033151]
[1724465398025,0.04794667,63908.0,63907.0,0.56033151]
[1724465398322,0.04794667,63908.0,63907.0,0.56033167]
[1724465398323,0.00104,63908.0,63907.0,0.56033167]
[1724465398513,0.00104,63908.0,63907.0,0.56032898]
[1724465400014,4e-05,63908.0,63907.0,0.55932898]
[1724465400217,0.00104,63908.0,63907.0,0.56032898]
[1724465400627,0.00104,63908.0,63907.0,0.55932898]
[1724465400823,0.00204,63908.0,63907.0,0.51897574]
[1724465401021,0.04893728,63908.0,63907.0,0.51897574]
[1724465401218,0.00204,63908.0,63907.0,0.44122675]
[1724465407328,0.00204,63908.0,63907.0,0.63808274]
[1724465407531,0.00204,63908.0,63907.0,0.51897574]
[1724465407725,0.04894096,63908.0,63907.0,0.63808227]
[1724465409528,0.00204,63908.0,63907.0,0.63808227]
[1724465410321,0.04894212,63908.0,63907.0,0.63808227]
[1724465411331,0.04894212,63908.0,63907.0,0.71627427]
[1724465411635,0.00204,63908.0,63907.0,0.63852528]
[1724465411937,0.00204,63908.0,63907.0,0.63852356]
[1724465415830,0.04894212,63908.0,63907.0,0.63852356]
[1724465416938,0.04894212,63908.0,63907.0,0.63852203]
[1724465417535,0.04894212,63908.0,63907.0,0.99932203]
[1724465420638,0.04894212,63908.0,63907.0,0.27772203]
[1724465420940,0.04894212,63908.0,63907.0,0.99932203]
[1724465421826,0.04894212,63908.0,63907.0,0.99932198]
[1724465422138,0.04894212,63908.0,63907.0,0.27772198]
[1724465422339,0.04894212,63908.0,63907.0,0.99932198]
[1724465422732,0.00204,63908.0,63907.0,0.99932198]
[1724465423632,0.00204,63908.0,63907.0,0.27772198]
[1724465423837,0.00204,63908.0,63907.0,0.99932198]
[1724465424229,0.00204,63908.0,63907.0,0.88021875]
[1724465424430,0.00204,63908.0,63907.0,0.99932198]
[1724465427342,0.00204,63908.0,63907.0,0.92112998]
[1724465429441,0.00204,63908.0,63907.0,0.19952998]
[1724465429642,0.00204,63908.0,63907.0,0.92112998]
[1724465430050,0.00204,63908.0,63907.0,0.99932198]
[1724465430439,0.00204,63908.0,63907.0,0.99932223]
[1724465431448,0.00204,63908.0,63907.0,0.99932211]
[1724465433348,0.00204,63908.0,63907.0,0.27772211]
[1724465433545,0.00204,63908.0,63907.0,0.99932211]
[1724465434356,0.00204,63908.0,63907.0,0.92113011]
[1724465437250,0.04894212,63908.0,63907.0,0.92113011]
[1724465437651,0.00204,63908.0,63907.0,0.92113011]
[1724465437853,0.00204,63908.0,63907.0,0.99891959]
[1724465439261,0.00204,63908.0,63907.0,0.92113011]
[1724465439566,0.00204,63908.0,63907.0,0.99893424]
[1724465439769,0.00204,63908.0,63907.0,0.63813424]
[1724465440666,0.00204,63908.0,63907.0,0.44122675]
[1724465440856,0.078196,63904.0,63903.0,0.07892413]
[1724465441162,0.078201,63900.0,63899.0,0.07780413]
[1724465441467,0.078201,63900.0,63894.0,0.09354621]
[1724465441468,0.3608,63900.0,63898.0,0.0466662]
[1724465441671,0.078203,63898.0,63896.0,0.0466662]
[1724465442164,0.46952,63897.0,63896.0,0.0466662]
[1724465442360,0.078206,63896.0,63892.0,0.4074662]
[1724465442561,0.14064521,63896.0,63892.0,0.4074662]
[1724465442959,0.078209,63893.0,63892.0,0.40743507]
[1724465443267,0.078209,63893.0,63892.0,0.3608]
[1724465443460,0.99453037,63893.0,63892.0,0.3608]
[1724465443662,0.59453037,63893.0,63892.0,0.3608]
[1724465443858,0.947729,63893.0,63892.0,0.3608]
[1724465444368,0.547729,63893.0,63892.0,0.3608]
[1724465444866,0.547729,63893.0,63891.0,0.00023475]
[1724465444867,0.950729,63893.0,63891.0,0.00023475]
[1724465445065,0.46956,63892.0,63891.0,0.00023475]
[1724465445275,0.46956,63892.0,63888.0,0.00019044]
[1724465445572,0.0467786,63890.0,63888.0,0.00019044]
[1724465445865,0.46956,63891.0,63888.0,0.00019044]
[1724465445866,0.1249926,63889.0,63888.0,0.00019044]
[1724465446066,0.5945926,63889.0,63888.0,0.00019044]
[1724465446266,0.9945926,63889.0,63888.0,0.00019044]
[1724465446466,0.947814,63889.0,63888.0,0.00019044]
[1724465447258,0.078222,63883.0,63882.0,0.00023475]
[1724465447463,0.547822,63883.0,63882.0,0.00023475]
[1724465447667,0.947822,63883.0,63882.0,0.00023475]
[1724465448171,0.94806006,63883.0,63882.0,0.00023475]
[1724465451262,0.078229,63877.0,63876.0,0.3608]
[1724465451970,0.078269,63877.0,63876.0,0.3608]
[1724465452471,0.078269,63877.0,63876.0,0.3668]
[1724465453572,0.078269,63877.0,63876.0,0.3728]
[1724465456286,4e-05,63877.0,63876.0,0.45103]
[1724465460580,0.00797409,63877.0,63876.0,0.09023]
[1724465460885,4e-05,63877.0,63876.0,0.45103]
[1724465461580,4e-05,63877.0,63876.0,0.09023]
[1724465461782,4e-05,63877.0,63876.0,0.45103]
[1724465465184,0.00790549,63877.0,63876.0,0.45103]
[1724465465386,4e-05,63877.0,63876.0,0.45103]
[1724465465890,4e-05,63877.0,63876.0,0.52926]
[1724465466181,0.00019806,63883.0,63882.0,0.298223]
[1724465466384,0.00019806,63883.0,63882.0,0.659023]
[1724465467983,0.00019806,63883.0,63882.0,1.019823]
[1724465468592,0.00019806,63883.0,63882.0,1.06645807]
[1724465468895,0.00019806,63883.0,63882.0,1.021823]
[1724465469082,0.00019806,63883.0,63882.0,1.06837299]
[1724465469277,0.00019806,63883.0,63882.0,1.021823]
[1724465471685,0.00019806,63883.0,63882.0,1.070223]
[1724465472392,0.00019806,63883.0,63882.0,1.13251205]
[1724465472888,0.00019806,63883.0,63882.0,0.41091205]
[1724465473089,0.00019806,63883.0,63882.0,1.13251205]
[1724465474187,0.00019806,63883.0,63882.0,1.070223]
[1724465475890,0.00019806,63883.0,63882.0,1.148446]
[1724465476090,0.04670327,63887.0,63882.0,0.992]
[1724465476293,0.06243921,63893.0,63888.0,0.078215]
[1724465476492,0.06243501,63900.0,63897.0,0.22]
[1724465476700,0.0468218,63900.0,63899.0,0.439002]
[1724465476900,0.06243501,63903.0,63902.0,0.078198]
[1724465477191,0.06243501,63904.0,63903.0,0.078197]
[1724465477384,0.06243501,63905.0,63903.0,0.078197]
[1724465478296,0.06243501,63906.0,63903.0,0.078197]
[1724465478594,0.06243501,63905.0,63903.0,0.078197]
[1724465479296,0.06243501,63906.0,63903.0,0.078197]
[1724465479796,0.14062901,63906.0,63903.0,0.078197]
[1724465480190,0.078194,63906.0,63903.0,0.078197]
[1724465480390,0.004,63905.0,63903.0,0.080197]
[1724465480796,0.082196,63905.0,63903.0,0.080197]
[1724465480994,0.438996,63904.0,63903.0,0.002]
[1724465481189,0.078198,63903.0,63901.0,0.0782]
[1724465481395,0.078201,63901.0,63897.0,0.36103475]
[1724465481589,0.078201,63901.0,63897.0,0.07843875]
[1724465481995,0.078202,63900.0,63897.0,0.07843875]
[1724465482191,4e-05,63898.0,63897.0,0.07843875]
[1724465482397,0.439044,63898.0,63897.0,0.00023475]
[1724465482601,0.908564,63898.0,63897.0,0.00023475]
[1724465482895,1.23036,63898.0,63891.0,0.04665028]
[1724465483091,0.439011,63892.0,63891.0,0.04665028]
[1724465483293,0.439011,63892.0,63887.0,0.12486728]
[1724465483497,0.078211,63892.0,63887.0,0.078217]
[1724465484097,0.04674468,63894.0,63887.0,0.078217]
[1724465484098,4e-05,63888.0,63887.0,0.078217]
[1724465486195,0.00404,63888.0,63887.0,0.078217]
[1724465486799,0.00204,63888.0,63887.0,0.078217]
[1724465487012,0.00404,63888.0,63887.0,0.078217]
[1724465488409,0.00404,63888.0,63887.0,0.12486728]
[1724465489203,0.00204,63888.0,63887.0,0.12486728]
[1724465490602,4e-05,63888.0,63887.0,0.078217]
[1724465490909,4e-05,63888.0,63887.0,0.12484225]
[1724465491099,4e-05,63888.0,63887.0,0.078217]
[1724465491811,0.00204,63888.0,63887.0,0.078217]
[1724465492307,0.00304,63888.0,63887.0,0.078217]
[1724465493010,0.00204,63888.0,63887.0,0.078217]
[1724465493505,4e-05,63888.0,63887.0,0.078217]
[1724465493899,0.00104,63888.0,63887.0,0.078217]
[1724465494106,0.00204,63888.0,63887.0,0.078217]
[1724465494306,0.04878468,63888.0,63887.0,0.078217]
[1724465494608,0.04778468,63888.0,63887.0,0.078217]
[1724465495009,0.00104,63888.0,63887.0,0.078217]
[1724465495313,0.04678468,63888.0,63887.0,0.078217]
[1724465496212,0.04778468,63888.0,63887.0,0.078217]
[1724465496414,0.04878468,63888.0,63887.0,0.078217]
[1724465497002,0.00204,63888.0,63887.0,0.078217]
[1724465499303,0.04878468,63888.0,63887.0,0.078217]
[1724465501010,0.04778468,63888.0,63887.0,0.078217]
[1724465501316,0.04878468,63888.0,63887.0,0.078217]
[1724465501909,0.00204,63888.0,63887.0,0.439017]
[1724465502309,0.00104,63888.0,63887.0,0.439017]
[1724465502509,0.00204,63888.0,63887.0,0.439017]
[1724465506619,0.00204,63888.0,63887.0,0.487517]
[1724465508911,0.00204,63888.0,63887.0,0.56532113]
[1724465509319,0.00204,63888.0,63887.0,0.68446246]
[1724465509520,0.00204,63888.0,63887.0,0.487517]
[1724465512319,0.00204,63888.0,63887.0,0.56532113]
[1724465512528,0.00204,63888.0,63887.0,0.68446438]
[1724465512825,0.00204,63888.0,63887.0,0.20452113]
[1724465513030,0.00204,63888.0,63887.0,0.56532113]
[1724465513923,0.00204,63888.0,63887.0,0.487517]
[1724465515020,0.00204,63888.0,63887.0,0.439017]
[1724465520430,0.00996407,63888.0,63887.0,0.439017]
[1724465520733,0.00204,63888.0,63887.0,0.439017]
[1724465521521,0.00204,63888.0,63887.0,0.50131311]
[1724465525232,0.00999739,63888.0,63887.0,0.50131311]
[1724465525430,0.00204,63888.0,63887.0,0.50131311]
[1724465526335,0.00204,63888.0,63887.0,0.14051311]
[1724465529927,0.00998707,63888.0,63887.0,0.14051311]
[1724465530133,0.00204,63888.0,63887.0,0.14051311]
[1724465534728,0.00989426,63888.0,63887.0,0.14051311]
[1724465534929,0.00204,63888.0,63887.0,0.14051311]
[1724465537141,0.06447501,63888.0,63887.0,0.14051311]
[1724465537340,0.06447501,63888.0,63887.0,0.078217]
[1724465539537,0.00984988,63888.0,63887.0,0.14051311]
[1724465543243,0.00984988,63888.0,63887.0,0.078217]
[1724465544545,0.08806588,63888.0,63887.0,0.14055497]
[1724465549054,0.08806588,63888.0,63887.0,0.078217]
[1724465550242,0.08706588,63888.0,63887.0,0.078217]
[1724465550448,0.08606588,63888.0,63887.0,0.078217]
[1724465551447,0.078218,63886.0,63885.0,0.3608]
[1724465552350,0.078258,63886.0,63885.0,0.3608]
[1724465552555,0.078258,63886.0,63885.0,0.439019]
[1724465552556,4e-05,63886.0,63885.0,0.439019]
[1724465552753,0.06256518,63887.0,63885.0,0.3608]
[1724465552950,0.06256518,63888.0,63887.0,0.078217]
[1724465553261,0.06256518,63890.0,63889.0,0.078215]
[1724465553442,0.00023475,63896.0,63895.0,0.078207]
[1724465553643,0.00023475,63896.0,63895.0,0.501328]
[1724465554045,0.00023475,63896.0,63895.0,0.439007]
[1724465554446,0.00023475,63896.0,63895.0,0.50132588]
[1724465554844,0.00223475,63896.0,63895.0,0.440007]
[1724465555048,0.06475657,63896.0,63895.0,0.440007]
[1724465555459,0.00223475,63896.0,63895.0,0.440007]
[1724465555648,0.07813564,63904.0,63895.0,0.440007]
[1724465555649,0.06252182,63898.0,63895.0,0.5818]
[1724465555854,0.47004992,63921.0,63900.0,0.078201]
[1724465555855,0.06250103,63901.0,63900.0,0.078201]
[1724465556062,0.04687299,63901.0,63900.0,0.298201]
[1724465556351,0.3686189,63916.0,63900.0,0.298201]
[1724465556352,0.04687299,63902.0,63900.0,0.298201]
[1724465556553,0.04687299,63905.0,63904.0,0.078196]
[1724465556758,0.06250103,63909.0,63905.0,0.078195]
[1724465556952,0.06250103,63908.0,63906.0,0.04665565]
[1724465557254,0.06250103,63909.0,63907.0,0.04665565]
[1724465557452,0.06250103,63910.0,63906.0,0.04665565]
[1724465557854,0.06250103,63909.0,63905.0,0.12485065]
[1724465558049,0.06250103,63908.0,63905.0,0.078195]
[1724465558454,0.06250103,63909.0,63905.0,0.078195]
[1724465558654,0.06250103,63909.0,63906.0,0.001]
[1724465559046,0.06450103,63910.0,63906.0,0.079193]
[1724465559456,0.06450103,63910.0,63906.0,0.080193]
[1724465559759,0.002,63908.0,63907.0,0.078192]
[1724465561057,0.002,63908.0,63907.0,0.079192]
[1724465561250,0.06250103,63910.0,63908.0,0.078191]
[1724465561451,0.06450103,63910.0,63908.0,0.078191]
[1724465561760,0.002,63910.0,63908.0,0.078191]
[1724465562061,0.06273578,63911.0,63908.0,0.078191]
[1724465562459,0.002,63910.0,63908.0,0.080191]
[1724465562646,0.002,63910.0,63909.0,0.07819]
[1724465564257,0.0487519,63910.0,63909.0,0.07819]
[1724465564560,0.002,63910.0,63909.0,0.07819]
[1724465565255,0.00023475,63911.0,63910.0,0.078189]
[1724465565555,0.00023475,63911.0,63910.0,0.124189]
[1724465566548,0.00223475,63911.0,63910.0,0.125189]
[1724465566952,0.00223475,63911.0,63910.0,0.126189]
[1724465568261,0.00223475,63911.0,63910.0,0.080189]
[1724465574467,0.00223475,63911.0,63910.0,0.440989]
[1724465574666,0.00223475,63911.0,63910.0,0.080189]
[1724465575365,0.01021457,63911.0,63910.0,0.080189]
[1724465579067,0.01021457,63911.0,63910.0,0.440989]
[1724465579469,0.01021457,63911.0,63910.0,0.48752338]
[1724465580560,0.01021457,63911.0,63910.0,0.440989]
[1724465580960,0.04899773,63911.0,63910.0,0.440989]
[1724465581160,0.00223475,63911.0,63910.0,0.440989]
[1724465583564,0.00223475,63911.0,63910.0,0.50319284]
[1724465583972,0.00223475,63911.0,63910.0,0.440989]
[1724465584561,0.06473578,63911.0,63910.0,0.440989]
[1724465584767,0.00223475,63911.0,63910.0,0.50319284]
[1724465584966,0.00223475,63911.0,63910.0,0.440989]
[1724465585367,0.00223475,63911.0,63910.0,0.50317306]
[1724465585570,0.06473578,63911.0,63910.0,0.440989]
[1724465585774,0.00223475,63911.0,63910.0,0.440989]
[1724465587674,0.00223475,63911.0,63910.0,0.50319503]
[1724465588577,0.00223475,63911.0,63910.0,0.440989]
[1724465588977,0.00223475,63911.0,63910.0,0.50320755]
[1724465589472,0.00223475,63911.0,63910.0,0.440989]
[1724465590477,0.00223475,63911.0,63910.0,0.080189]
[1724465590679,0.00223475,63911.0,63910.0,0.440989]
[1724465591075,0.00223475,63911.0,63910.0,0.080189]
[1724465591277,0.00223475,63911.0,63910.0,0.440989]
[1724465591677,0.00223475,63911.0,63910.0,0.080189]
[1724465591872,0.00223475,63911.0,63910.0,0.440989]
[1724465592473,0.06473578,63911.0,63910.0,0.440989]
[1724465592871,0.00223475,63911.0,63910.0,0.440989]
[1724465593283,0.00223475,63911.0,63910.0,0.5032472]
[1724465593584,0.00223475,63911.0,63910.0,0.440989]
[1724465595479,0.06475545,63911.0,63910.0,0.440989]
[1724465597385,0.00223475,63911.0,63910.0,0.440989]
[1724465603781,0.06475545,63911.0,63910.0,0.440989]
[1724465604292,0.00223475,63911.0,63910.0,0.440989]
[1724465604484,0.06475545,63911.0,63910.0,0.440989]
[1724465606293,0.06475545,63911.0,63910.0,0.080189]
[1724465606690,0.06475545,63911.0,63910.0,0.440989]
[1724465608695,0.06475545,63911.0,63910.0,0.080189]
[1724465609194,0.06475545,63911.0,63910.0,0.440989]
[1724465609394,0.00223475,63911.0,63910.0,0.440989]
[1724465610589,0.00223475,63911.0,63910.0,0.080189]
[1724465610786,0.00223475,63911.0,63910.0,0.440989]
[1724465613192,0.08842587,63911.0,63910.0,0.3628]
[1724465613505,0.16656151,63911.0,63910.0,0.3628]
[1724465614203,0.08842587,63911.0,63910.0,0.3628]
[1724465614400,0.16661096,63911.0,63910.0,0.3628]
[1724465614905,0.08842587,63911.0,63910.0,0.3628]
[1724465615696,0.01023787,63911.0,63910.0,0.440989]
[1724465616605,0.01023787,63911.0,63910.0,0.080189]
[1724465616796,0.01023787,63911.0,63910.0,0.440989]
[1724465620101,0.01023787,63911.0,63910.0,0.50329626]
[1724465625094,0.01023787,63911.0,63910.0,0.440989]
[1724465632408,0.00223475,63911.0,63910.0,0.440989]
[1724465633616,0.04911544,63911.0,63910.0,0.440989]
[1724465634399,0.00223475,63911.0,63910.0,0.440989]
[1724465636814,0.0491148,63911.0,63910.0,0.440989]
[1724465637810,0.00223475,63911.0,63910.0,0.440989]
[1724465638011,0.04911326,63911.0,63910.0,0.440989]
[1724465640323,0.00223475,63911.0,63910.0,0.56009425]
[1724465640621,0.00223475,63911.0,63910.0,0.440989]
[1724465641014,0.04911326,63911.0,63910.0,0.440989]
[1724465641415,0.00223475,63911.0,63910.0,0.440989]
[1724465641619,0.00023475,63911.0,63910.0,0.439989]
[1724465641819,0.00223475,63911.0,63910.0,0.440989]
[1724465650621,0.00223475,63911.0,63910.0,0.519178]
[1724465651617,0.00223475,63911.0,63910.0,0.59705412]
[1724465654330,0.00223475,63911.0,63910.0,0.519178]
[1724465654822,0.00223475,63911.0,63910.0,0.59705412]
[1724465655226,0.00223475,63911.0,63910.0,0.71615485]